fUSD/lending_fUSD_20250526
["ID","MTS","AMOUNT","RATE_DAILY","PERIOD"]
[362443656,1748295052900,-232.68214787,0.00032876,2]
[362443657,1748295052910,-500.0,0.00032876,2]
[362443658,1748295052919,-511.71921858,0.00032876,2]
[362443659,1748295052929,-267.51991202,0.00032876,2]
[362443660,1748295052939,-420.0,0.00032876,2]
[362443661,1748295052949,-420.0,0.00032876,2]
[362443662,1748295052958,-420.0,0.00032876,2]
[362443663,1748295052967,-420.0,0.00032876,2]
[362443664,1748295052977,-4019.4,0.00032876,2]
[362443665,1748295052986,-282.39701772,0.00032876,2]
[362443666,1748295052995,-423.03237871,0.00032876,2]
[362443667,1748295053005,-420.0,0.00032876,2]
[362443668,1748295053014,-420.0,0.00032876,2]
[362443669,1748295053023,-420.0,0.00032876,2]
[362443670,1748295053033,-420.0,0.00032876,2]
[362443671,1748295053042,-420.0,0.00032876,2]
[362443672,1748295053051,-4465.11,0.00032876,2]
[362443673,1748295053061,-420.0,0.00032876,2]
[362443674,1748295053070,-420.0,0.00032876,2]
[362443675,1748295053080,-420.0,0.00032876,2]
[362443676,1748295053089,-2473.89,0.00032876,2]
[362443677,1748295053098,-420.0,0.00032876,2]
[362443678,1748295053108,-420.0,0.00032876,2]
[362443679,1748295053117,-3594.31,0.00032876,2]
[362443680,1748295053126,-420.0,0.00032876,2]
[362443681,1748295053136,-420.0,0.00032876,2]
[362443682,1748295053145,-420.0,0.00032876,2]
[362443683,1748295053155,-487.99,0.00032876,2]
[362443684,1748295053164,-420.0,0.00032876,2]
[362443685,1748295053173,-420.0,0.00032876,2]
[362443686,1748295053182,-420.0,0.00032876,2]
[362443687,1748295053196,-420.0,0.00032876,2]
[362443688,1748295053205,-420.0,0.00032876,2]
[362443689,1748295053215,-420.0,0.00032876,2]
[362443690,1748295053225,-420.0,0.00032876,2]
[362443691,1748295053235,-420.0,0.00032876,2]
[362443692,1748295053244,-420.0,0.00032876,2]
[362443693,1748295053254,-420.0,0.00032876,2]
[362443694,1748295053264,-420.0,0.00032876,2]
[362443695,1748295053274,-420.0,0.00032876,2]
[362443696,1748295053283,-3415.47,0.00032876,2]
[362443697,1748295053292,-300.0,0.00032876,2]
[362443698,1748295053302,-420.0,0.00032876,2]
[362443699,1748295053311,-420.0,0.00032876,2]
[362443700,1748295053321,-2969.3,0.00032876,2]
[362443701,1748295053330,-420.0,0.00032876,2]
[362443702,1748295053340,-420.0,0.00032876,2]
[362443703,1748295053350,-457.85,0.00032876,2]
[362443704,1748295053359,-420.0,0.00032876,2]
[362443705,1748295053369,-420.0,0.00032876,2]
[362443706,1748295053378,-420.0,0.00032876,2]
[362443707,1748295053387,-420.0,0.00032876,2]
[362443708,1748295053397,-420.0,0.00032876,2]
[362443709,1748295053406,-3686.53,0.00032876,2]
[362443710,1748295053415,-420.0,0.00032876,2]
[362443711,1748295053425,-3441.45,0.00032876,2]
[362443712,1748295053434,-420.0,0.00032876,2]
[362443713,1748295053443,-1595.69,0.00032876,2]
[362443714,1748295053452,-420.0,0.00032876,2]
[362443715,1748295053462,-420.0,0.00032876,2]
[362443716,1748295053472,-4105.97,0.00032876,2]
[362443717,1748295053481,-420.0,0.00032876,2]
[362443718,1748295053490,-151.0,0.00032876,7]
[362443719,1748295053499,-420.0,0.00032876,2]
[362443720,1748295053509,-420.0,0.00032876,2]
[362443721,1748295053518,-420.0,0.00032876,2]
[362443722,1748295053528,-192.106564,0.00032876,7]
[362443723,1748295053537,-420.0,0.00032876,2]
[362443724,1748295053547,-420.0,0.00032876,2]
[362443725,1748295053557,-2300.22,0.00032876,2]
[362443726,1748295053567,-2639.51,0.00032876,2]
[362443727,1748295053576,-420.0,0.00032876,2]
[362443728,1748295053585,-420.0,0.00032876,2]
[362443729,1748295053595,-5778.99,0.00032876,2]
[362443730,1748295053605,-2312.34,0.00032876,2]
[362443731,1748295053615,-420.0,0.00032876,2]
[362443732,1748295053624,-420.0,0.00032876,2]
[362443733,1748295053634,-4000.0,0.00032876,2]
[362443734,1748295053643,-250.54902993,0.00032876,2]
[362443735,1748295053653,-420.0,0.00032876,2]
[362443736,1748295053663,-29367.42180923,0.00032876,2]
[362443737,1748295053720,-546.1,0.00032876,2]
[362443738,1748295054008,-426.9101755,0.00032876,2]
[362443739,1748295054020,-6599.6,0.00032876,2]
[362443740,1748295054032,-1650.78381267,0.00032876,2]
[362443741,1748295054324,-3788.88839461,0.00032876,2]
[362443742,1748295054339,-351.91,0.00032876,2]
[362443743,1748295054402,-2312.49580799,0.00032876,2]
[362443744,1748295054414,-422.59368819,0.00032876,2]
[362443745,1748295054426,-420.0,0.00032876,2]
[362443746,1748295054437,-420.0,0.00032876,2]
[362443747,1748295054447,-423.18136327,0.00032876,2]
[362443748,1748295054457,-187.34550327,0.00032876,2]
[362443749,1748295397361,213.99226181,0.00025,60]
[362443755,1748295985562,155.41,0.00013699,2]
[362443781,1748296231865,-407.88,0.00029857,2]
[362443782,1748296231877,-154.0,0.00030254,2]
[362443783,1748296231888,-206.0,0.00030634,2]
[362443784,1748296231902,-666.74796293,0.00031,5]
[362443785,1748296231914,-449.25203707,0.00031,5]
[362443786,1748296231923,-187.08668798,0.00031233,2]
[362443787,1748296231937,-207.87136802,0.00031233,2]
[362443788,1748296231947,-150.49,0.000313,2]
[362443789,1748296231957,-150.49,0.000313,2]
[362443790,1748296231967,-150.49,0.000313,2]
[362443791,1748296231977,-150.49,0.000313,2]
[362443792,1748296231987,-151.61,0.00031346,2]
[362443793,1748296231997,-151.78,0.00031346,2]
[362443794,1748296232007,-179.68,0.00031364,2]
[362443795,1748296232017,-250.0,0.00031375,2]
[362443796,1748296232027,-631.03,0.0003138,2]
[362443797,1748296232037,-150.49,0.000314,2]
[362443798,1748296232046,-150.46,0.000314,2]
[362443799,1748296232056,-845.81863198,0.00031585,2]
[362443800,1748296232069,-154.18136802,0.00031585,2]
[362443801,1748296232078,-173.0,0.00031631,2]
[362443802,1748296232087,-207.4,0.0003164,2]
[362443803,1748296232097,-300.0,0.00031656,3]
[362443804,1748296232106,-1281.0,0.00031656,3]
[362443805,1748296232115,-300.0,0.00031658,3]
[362443806,1748296232125,-154.01,0.00031658,2]
[362443807,1748296232134,-2046.00863198,0.00031659,2]
[362443808,1748296232145,-2301.0,0.00031659,2]
[362443809,1748296232188,-456.7858882,0.00031659,2]
[362443810,1748296232207,-4548.92633695,0.00031659,2]
[362443811,1748296232218,-389.53914287,0.00031659,2]
[362443812,1748296232228,-216.99192031,0.00031831,8]
[362443813,1748296232237,-455.624248,0.00031889,12]
[362443814,1748296232246,-209.7704785,0.000319,25]
[362443815,1748296232256,-450.0,0.00032054,2]
[362443816,1748296232265,-453.7,0.00032055,2]
[362443817,1748296232274,-453.7,0.00032055,2]
[362443818,1748296232284,-162.96,0.00032055,2]
[362443819,1748296232296,-453.7,0.00032055,2]
[362443820,1748296232306,-453.7,0.00032055,2]
[362443821,1748296232315,-453.7,0.00032055,2]
[362443822,1748296232327,-162.96,0.00032055,2]
[362443823,1748296232336,-453.7,0.00032055,2]
[362443824,1748296232346,-162.96,0.00032055,2]
[362443825,1748296232356,-162.96,0.00032055,2]
[362443826,1748296232367,-907.4,0.00032055,2]
[362443827,1748296232377,-162.96,0.00032055,2]
[362443828,1748296232386,-162.96,0.00032055,2]
[362443829,1748296232396,-453.7,0.00032055,2]
[362443830,1748296232407,-162.96,0.00032055,2]
[362443831,1748296232417,-162.96,0.00032055,2]
[362443832,1748296232427,-325.92,0.00032055,2]
[362443833,1748296232437,-150.0,0.00032078,2]
[362443834,1748296232446,-407.88,0.0003212,2]
[362443835,1748296232456,-1067.287664,0.00032218,2]
[362443836,1748296232466,-167.15803396,0.00032219,30]
[362443837,1748296232476,-167.15803396,0.00032329,30]
[362443838,1748296232485,-167.15803396,0.00032466,30]
[362443840,1748296232495,-164.87,0.00032479,2]
[362443842,1748296232504,-1000.0,0.000325,7]
[362443844,1748296232513,-4000.0,0.0003255,2]
[362443846,1748296232522,-167.15803396,0.00032603,30]
[362443847,1748296232532,-1440.2703462,0.00032662,4]
[362443848,1748296232541,-194.71861535,0.00032666,2]
[362443849,1748296232550,-510.7439,0.00032712,2]
[362443850,1748296232560,-167.15803396,0.0003274,30]
[362443851,1748296232569,-1199.20597015,0.00032746,2]
[362443852,1748296232578,-151.0,0.00032746,2]
[362443853,1748296232588,-1440.27034621,0.00032756,4]
[362443854,1748296232597,-775.7233307,0.00032756,2]
[362443855,1748296232607,-214.65901318,0.00032756,2]
[362443856,1748296232616,-166.38256707,0.00032758,15]
[362443857,1748296232626,-152.78554428,0.00032765,2]
[362443858,1748296232635,-483.27252627,0.00032765,2]
[362443860,1748296232645,-983.451,0.00032765,33]
[362443861,1748296232655,-1000.0,0.00032766,2]
[362443863,1748296232663,-32826.222,0.00032766,2]
[362443865,1748296232673,-179.23377274,0.00032766,4]
[362443867,1748296232682,-644.47706479,0.00032776,2]
[362443869,1748296232691,-775.7233307,0.00032789,2]
[362443871,1748296232700,-775.7233307,0.00032821,2]
[362443873,1748296232710,-150.0,0.00032823,2]
[362443875,1748296232719,-170.56,0.00032847,2]
[362443877,1748296232728,-167.15803396,0.00032849,30]
[362443879,1748296232738,-775.7233307,0.00032854,2]
[362443881,1748296232748,-95971.7203736,0.00032855,2]
[362443883,1748296232757,-249526.472971,0.00032856,2]
[362443885,1748296232766,-150.0,0.00032856,2]
[362443887,1748296232775,-150.0,0.00032862,2]
[362443889,1748296232784,-600.55829102,0.00032865,2]
[362443891,1748296232794,-246.0,0.00032865,5]
[362443893,1748296232803,-46478.0454171,0.00032866,2]
[362443895,1748296232815,-10759.7131086,0.00032866,2]
[362443898,1748296232837,-802.31557787,0.00032866,2]
[362444389,1748296237864,-261.92,0.00032866,2]
[362444413,1748296238095,-12288.1276773,0.00032866,2]
[362444415,1748296238106,-3704.57747349,0.00032866,2]
[362444593,1748296240035,-349.90215935,0.00032866,2]
[362444601,1748296240101,-2171.5344,0.00032866,2]
[362444857,1748296243126,-206.0,0.00030634,2]
[362444859,1748296243136,-19155.58455989,0.00032866,2]
[362444861,1748296243145,-172749.096672,0.00032866,2]
[362444863,1748296243155,-150.0,0.00032869,2]
[362444865,1748296243166,-500.0,0.00032873,5]
[362444867,1748296243175,-500.0,0.00032873,5]
[362444869,1748296243185,-500.0,0.00032873,5]
[362444871,1748296243195,-224.0,0.00032876,5]
[362444873,1748296243204,-1190.0,0.00032876,7]
[362444876,1748296243215,-1190.0,0.00032876,7]
[362444877,1748296243226,-1190.0,0.00032876,7]
[362444878,1748296243235,-1190.0,0.00032876,7]
[362444879,1748296243244,-684.77117613,0.00032876,7]
[362444880,1748296243254,-542.84884568,0.00032876,2]
[362444881,1748296243263,-420.0,0.00032876,2]
[362444882,1748296243274,-425.12269106,0.00032876,2]
[362444883,1748296243283,-420.0,0.00032876,2]
[362444884,1748296243292,-420.0,0.00032876,2]
[362444885,1748296243301,-298.61171956,0.00032876,2]
[362444886,1748296243310,-420.0,0.00032876,2]
[362444889,1748296243323,-420.0,0.00032876,2]
[362444891,1748296243333,-151.0,0.00032876,7]
[362444894,1748296243342,-151.0,0.00032876,7]
[362444896,1748296243351,-151.0,0.00032876,7]
[362444898,1748296243360,-151.0,0.00032876,7]
[362444900,1748296243371,-397.02138405,0.00032876,2]
[362444902,1748296243382,-420.0,0.00032876,2]
[362444904,1748296243391,-420.0,0.00032876,2]
[362444906,1748296243400,-420.0,0.00032876,2]
[362444908,1748296243410,-420.0,0.00032876,2]
[362444910,1748296243419,-420.0,0.00032876,2]
[362444912,1748296243429,-420.0,0.00032876,2]
[362444914,1748296243438,-420.0,0.00032876,2]
[362444941,1748296243676,-420.0,0.00032876,2]
[362444943,1748296243686,-420.0,0.00032876,2]
[362444945,1748296243696,-342.1367752,0.00032876,2]
[362444947,1748296243705,-431.46629826,0.00032876,2]
[362444949,1748296243715,-420.0,0.00032876,2]
[362444951,1748296243724,-420.0,0.00032876,2]
[362444953,1748296243733,-420.0,0.00032876,2]
[362444955,1748296243744,-420.0,0.00032876,2]
[362444957,1748296243754,-420.0,0.00032876,2]
[362444959,1748296243764,-420.0,0.00032876,2]
[362444961,1748296243773,-420.0,0.00032876,2]
[362444963,1748296243783,-420.0,0.00032876,2]
[362444965,1748296243792,-420.0,0.00032876,2]
[362444967,1748296243802,-429.90069779,0.00032876,2]
[362444969,1748296243811,-420.0,0.00032876,2]
[362444970,1748296243822,-349.51975267,0.00032876,2]
[362444973,1748296243832,-439.56,0.00032876,2]
[362444975,1748296243843,-12500.0,0.00032876,5]
[362444976,1748296243855,-420.0,0.00032876,2]
[362444978,1748296243864,-420.0,0.00032876,2]
[362444980,1748296243875,-420.0,0.00032876,2]
[362444982,1748296243884,-430.60483128,0.00032876,2]
[362444984,1748296243896,-1000.0,0.00032876,2]
[362444986,1748296243906,-420.0,0.00032876,2]
[362444988,1748296243915,-432.57537486,0.00032876,2]
[362444990,1748296243925,-420.0,0.00032876,2]
[362444992,1748296243935,-424.18551408,0.00032876,2]
[362444994,1748296243944,-426.49636978,0.00032876,2]
[362444996,1748296243954,-420.0,0.00032876,2]
[362444998,1748296243964,-420.0,0.00032876,2]
[362445000,1748296243974,-151.0,0.00032876,7]
[362445002,1748296243984,-318.2961858,0.00032876,2]
[362445004,1748296243994,-420.0,0.00032876,2]
[362445006,1748296244003,-420.0,0.00032876,2]
[362445008,1748296244013,-360.0,0.00032876,2]
[362445010,1748296244023,-420.0,0.00032876,2]
[362445012,1748296244033,-420.0,0.00032876,2]
[362445014,1748296244043,-420.0,0.00032876,2]
[362445016,1748296244053,-420.0,0.00032876,2]
[362445018,1748296244062,-493.58874831,0.00032876,2]
[362445020,1748296244072,-420.0,0.00032876,2]
[362445022,1748296244083,-420.0,0.00032876,2]
[362445024,1748296244092,-420.0,0.00032876,2]
[362445026,1748296244102,-420.0,0.00032876,2]
[362445028,1748296244111,-197.51222257,0.00032876,2]
[362445030,1748296244121,-427.86302264,0.00032876,2]
[362445032,1748296244130,-400.0,0.00032876,2]
[362445034,1748296244141,-420.0,0.00032876,2]
[362445036,1748296244151,-401.36718605,0.00032876,2]
[362445038,1748296244161,-429.8986468,0.00032876,2]
[362445040,1748296244171,-420.0,0.00032876,2]
[362445042,1748296244180,-211.54466775,0.00032876,2]
[362445044,1748296244190,-427.89941843,0.00032876,2]
[362445046,1748296244199,-476.09373158,0.00032876,2]
[362445048,1748296244209,-420.0,0.00032876,2]
[362445050,1748296244218,-420.0,0.00032876,2]
[362445052,1748296244227,-420.0,0.00032876,2]
[362445054,1748296244237,-420.0,0.00032876,2]
[362445056,1748296244246,-420.0,0.00032876,2]
[362445058,1748296244256,-428.38443187,0.00032876,2]
[362445060,1748296244266,-420.0,0.00032876,2]
[362445062,1748296244276,-420.0,0.00032876,2]
[362445064,1748296244286,-400.0,0.00032876,2]
[362445066,1748296244296,-420.0,0.00032876,2]
[362445068,1748296244306,-420.0,0.00032876,2]
[362445070,1748296244318,-171.065218,0.00032876,2]
[362445072,1748296244328,-151.0,0.00032876,5]
[362445074,1748296244338,-420.0,0.00032876,2]
[362445076,1748296244347,-420.0,0.00032876,2]
[362445078,1748296244356,-420.0,0.00032876,2]
[362445080,1748296244366,-420.0,0.00032876,2]
[362445082,1748296244376,-420.0,0.00032876,2]
[362445084,1748296244385,-420.0,0.00032876,2]
[362445086,1748296244395,-1389.408698,0.00032876,2]
[362445088,1748296244404,-400.0,0.00032876,2]
[362445090,1748296244413,-420.0,0.00032876,2]
[362445092,1748296244423,-420.0,0.00032876,2]
[362445094,1748296244432,-420.0,0.00032876,2]
[362445096,1748296244441,-352.1416182,0.00032876,2]
[362445098,1748296244451,-420.0,0.00032876,2]
[362445100,1748296244460,-420.0,0.00032876,2]
[362445102,1748296244469,-420.0,0.00032876,2]
[362445104,1748296244478,-420.0,0.00032876,2]
[362445106,1748296244488,-150.0,0.00032876,2]
[362445108,1748296244497,-400.0,0.00032876,2]
[362445110,1748296244506,-420.0,0.00032876,2]
[362445112,1748296244515,-420.0,0.00032876,2]
[362445114,1748296244524,-420.0,0.00032876,2]
[362445115,1748296244533,-420.0,0.00032876,2]
[362445117,1748296244542,-233.315906,0.00032876,2]
[362445119,1748296244551,-427.32724702,0.00032876,2]
[362445121,1748296244560,-420.0,0.00032876,2]
[362445123,1748296244570,-333.10007841,0.00032876,2]
[362445125,1748296244579,-420.0,0.00032876,2]
[362445139,1748296244796,-420.0,0.00032876,2]
[362445141,1748296244805,-420.0,0.00032876,2]
[362445143,1748296244815,-420.0,0.00032876,2]
[362445145,1748296244825,-420.0,0.00032876,2]
[362445147,1748296244835,-426.49699058,0.00032876,2]
[362445149,1748296244845,-525.78098775,0.00032876,2]
[362445151,1748296244855,-420.0,0.00032876,2]
[362445153,1748296244864,-420.0,0.00032876,2]
[362445155,1748296244874,-420.0,0.00032876,2]
[362445157,1748296244883,-462.88,0.00032876,2]
[362445158,1748296244896,-420.0,0.00032876,2]
[362445160,1748296244907,-420.0,0.00032876,2]
[362445162,1748296244916,-432.43037927,0.00032876,2]
[362445164,1748296244926,-420.0,0.00032876,2]
[362445167,1748296244936,-420.0,0.00032876,2]
[362445168,1748296244946,-420.0,0.00032876,2]
[362445170,1748296244956,-420.0,0.00032876,2]
[362445173,1748296244965,-420.0,0.00032876,2]
[362445175,1748296244977,-420.0,0.00032876,2]
[362445177,1748296244987,-420.0,0.00032876,2]
[362445178,1748296244997,-440.98717455,0.00032876,2]
[362445180,1748296245006,-420.0,0.00032876,2]
[362445181,1748296245016,-151.0,0.00032876,7]
[362445182,1748296245026,-2025.54,0.00032876,2]
[362445183,1748296245036,-194.96617294,0.00032876,2]
[362445184,1748296245045,-420.0,0.00032876,2]
[362445185,1748296245056,-420.0,0.00032876,2]
[362445186,1748296245066,-420.0,0.00032876,2]
[362445187,1748296245075,-420.0,0.00032876,2]
[362445188,1748296245085,-420.0,0.00032876,2]
[362445189,1748296245095,-420.0,0.00032876,2]
[362445190,1748296245105,-420.0,0.00032876,2]
[362445191,1748296245116,-186.65508,0.00032876,7]
[362445193,1748296245126,-420.0,0.00032876,2]
[362445195,1748296245135,-420.0,0.00032876,2]
[362445197,1748296245145,-424.07414481,0.00032876,2]
[362445199,1748296245154,-420.0,0.00032876,2]
[362445201,1748296245163,-420.0,0.00032876,2]
[362445203,1748296245173,-420.0,0.00032876,2]
[362445205,1748296245182,-431.62629609,0.00032876,2]
[362445207,1748296245191,-420.0,0.00032876,2]
[362445209,1748296245201,-420.0,0.00032876,2]
[362445211,1748296245210,-420.0,0.00032876,2]
[362445213,1748296245219,-420.0,0.00032876,2]
[362445215,1748296245228,-420.0,0.00032876,2]
[362445217,1748296245238,-420.0,0.00032876,2]
[362445219,1748296245247,-420.0,0.00032876,2]
[362445221,1748296245256,-420.0,0.00032876,2]
[362445222,1748296245265,-154.369671,0.00032876,7]
[362445224,1748296245275,-420.0,0.00032876,2]
[362445226,1748296245284,-420.0,0.00032876,2]
[362445228,1748296245294,-420.0,0.00032876,2]
[362445230,1748296245303,-420.0,0.00032876,2]
[362445232,1748296245312,-454.79,0.00032876,2]
[362445234,1748296245321,-420.0,0.00032876,2]
[362445236,1748296245330,-420.0,0.00032876,2]
[362445238,1748296245340,-420.0,0.00032876,2]
[362445240,1748296245349,-420.0,0.00032876,2]
[362445242,1748296245358,-420.0,0.00032876,2]
[362445244,1748296245369,-110.57052218,0.00032876,2]
[362445248,1748296245396,-866.636216,0.00032876,2]
[362445250,1748296245407,-726.052521,0.00032876,2]
[362445306,1748296246023,-650.09074082,0.00032876,2]
[362445308,1748296246032,-420.0,0.00032876,2]
[362445310,1748296246043,-420.0,0.00032876,2]
[362445312,1748296246052,-420.0,0.00032876,2]
[362445314,1748296246061,-420.0,0.00032876,2]
[362445316,1748296246071,-461.17,0.00032876,2]
[362445318,1748296246080,-420.0,0.00032876,2]
[362445320,1748296246090,-420.0,0.00032876,2]
[362445322,1748296246099,-420.0,0.00032876,2]
[362445324,1748296246109,-420.0,0.00032876,2]
[362445326,1748296246118,-151.0,0.00032876,7]
[362445328,1748296246127,-420.0,0.00032876,2]
[362445329,1748296246137,-151.0,0.00032876,7]
[362445331,1748296246147,-186.176355,0.00032876,7]
[362445333,1748296246156,-420.0,0.00032876,2]
[362445335,1748296246166,-543.06036841,0.00032876,2]
[362445337,1748296246176,-420.0,0.00032876,2]
[362445340,1748296246187,-420.0,0.00032876,2]
[362445342,1748296246196,-2197.26,0.00032876,2]
[362445343,1748296246206,-420.0,0.00032876,2]
[362445345,1748296246215,-420.0,0.00032876,2]
[362445347,1748296246224,-2126.86,0.00032876,2]
[362445349,1748296246235,-420.0,0.00032876,2]
[362445351,1748296246244,-420.0,0.00032876,2]
[362445353,1748296246254,-420.0,0.00032876,2]
[362445355,1748296246263,-373.11840414,0.00032876,2]
[362445358,1748296246276,-46.88159586,0.00032876,2]
[362445360,1748296246286,-420.0,0.00032876,2]
[362445362,1748296246295,-420.0,0.00032876,2]
[362445364,1748296246304,-2315.96,0.00032876,2]
[362445366,1748296246313,-420.0,0.00032876,2]
[362445368,1748296246323,-438.77,0.00032876,2]
[362445369,1748296246332,-169.70977859,0.00032876,2]
[362445372,1748296246348,-250.29022141,0.00032876,2]
[362445374,1748296246357,-420.0,0.00032876,2]
[362445376,1748296246366,-399.34778035,0.00032876,2]
[362445378,1748296246377,-20.65221965,0.00032876,2]
[362445380,1748296246386,-420.0,0.00032876,2]
[362445382,1748296246396,-325.02985933,0.00032876,2]
[362445384,1748296246405,-420.0,0.00032876,2]
[362445386,1748296246414,-104.05974815,0.00032876,2]
[362445388,1748296246426,-315.94025185,0.00032876,2]
[362445391,1748296246436,-151.0,0.00032876,7]
[362445393,1748296246445,-151.0,0.00032876,7]
[362445395,1748296246454,-151.0,0.00032876,7]
[362445396,1748296246463,-420.0,0.00032876,2]
[362445398,1748296246473,-151.0,0.00032876,7]
[362445400,1748296246482,-151.0,0.00032876,7]
[362445402,1748296246491,-380.76843954,0.00032876,2]
[362445409,1748296246543,-39.23156046,0.00032876,2]
[362445411,1748296246552,-420.0,0.00032876,2]
[362445413,1748296246562,-420.0,0.00032876,2]
[362445415,1748296246571,-420.0,0.00032876,2]
[362445417,1748296246581,-420.0,0.00032876,2]
[362445419,1748296246590,-420.0,0.00032876,2]
[362445421,1748296246600,-3316.22,0.00032876,2]
[362445442,1748296246792,-420.0,0.00032876,2]
[362445444,1748296246803,-420.0,0.00032876,2]
[362445446,1748296246813,-420.0,0.00032876,2]
[362445448,1748296246822,-420.0,0.00032876,2]
[362445450,1748296246832,-420.0,0.00032876,2]
[362445452,1748296246841,-2764.72,0.00032876,2]
[362445454,1748296246851,-420.0,0.00032876,2]
[362445456,1748296246860,-420.0,0.00032876,2]
[362445458,1748296246870,-420.0,0.00032876,2]
[362445460,1748296246879,-420.0,0.00032876,2]
[362445462,1748296246890,-420.0,0.00032876,2]
[362445464,1748296246902,-420.0,0.00032876,2]
[362445466,1748296246912,-420.0,0.00032876,2]
[362445468,1748296246921,-420.0,0.00032876,2]
[362445470,1748296246930,-2993.82,0.00032876,2]
[362445472,1748296246942,-420.0,0.00032876,2]
[362445474,1748296246951,-420.0,0.00032876,2]
[362445476,1748296246961,-625.3,0.00032876,2]
[362445478,1748296246972,-3035.53,0.00032876,2]
[362445480,1748296246981,-420.0,0.00032876,2]
[362445482,1748296246991,-420.0,0.00032876,2]
[362445484,1748296247000,-420.0,0.00032876,2]
[362445486,1748296247010,-420.0,0.00032876,2]
[362445488,1748296247019,-420.0,0.00032876,2]
[362445490,1748296247029,-420.0,0.00032876,2]
[362445492,1748296247039,-420.0,0.00032876,2]
[362445494,1748296247049,-420.0,0.00032876,2]
[362445496,1748296247058,-4639.08,0.00032876,2]
[362445498,1748296247068,-420.0,0.00032876,2]
[362445500,1748296247078,-420.0,0.00032876,2]
[362445501,1748296247087,-420.0,0.00032876,2]
[362445502,1748296247102,-420.0,0.00032876,2]
[362445503,1748296247121,-500.0,0.00032876,2]
[362445504,1748296247132,-500.0,0.00032876,2]
[362445505,1748296247141,-151.0,0.00032876,7]
[362445506,1748296247151,-500.0,0.00032876,2]
[362445507,1748296247160,-500.0,0.00032876,2]
[362445508,1748296247170,-151.0,0.00032876,7]
[362445510,1748296247180,-500.0,0.00032876,2]
[362445512,1748296247190,-420.0,0.00032876,2]
[362445514,1748296247199,-500.0,0.00032876,2]
[362445516,1748296247208,-420.0,0.00032876,2]
[362445518,1748296247218,-151.0,0.00032876,7]
[362445520,1748296247228,-151.0,0.00032876,7]
[362445522,1748296247238,-420.0,0.00032876,2]
[362445524,1748296247247,-420.0,0.00032876,2]
[362445526,1748296247258,-151.0,0.00032876,7]
[362445528,1748296247267,-151.0,0.00032876,7]
[362445530,1748296247277,-420.0,0.00032876,2]
[362445532,1748296247286,-151.0,0.00032876,7]
[362445534,1748296247296,-420.0,0.00032876,2]
[362445536,1748296247305,-420.0,0.00032876,2]
[362445538,1748296247315,-420.0,0.00032876,2]
[362445540,1748296247324,-152.668853,0.00032876,7]
[362445542,1748296247334,-420.0,0.00032876,2]
[362445544,1748296247346,-420.0,0.00032876,2]
[362445546,1748296247355,-343.49367567,0.00032876,2]
[362445548,1748296247365,-420.0,0.00032876,2]
[362445550,1748296247375,-2615.86,0.00032876,2]
[362445552,1748296247384,-420.0,0.00032876,2]
[362445554,1748296247394,-806.67,0.00032876,2]